bitfinex/quotes_SOLUSD_20241110
["timestamp","ask_amount","ask_price","bid_price","bid_amount"]
[1731219997743,29.08,205.56,205.43,17.0340613]
[1731219997944,17.0340613,205.5,205.44,17.0340613]
[1731219998138,17.0340613,205.51,205.44,17.0340613]
[1731219998343,17.0340613,205.5,205.43,17.0340613]
[1731219998849,17.0340613,205.51,205.44,17.0340613]
[1731219999148,17.0340613,205.5,205.43,17.0340613]
[1731219999353,17.0340613,205.47,205.37,22.6687]
[1731219999554,17.0340613,205.47,205.4,17.0340613]
[1731219999738,17.0340613,205.44,205.37,39.7027613]
[1731220000258,17.0340613,205.45,205.38,17.0340613]
[1731220002859,17.0340613,205.43,205.36,17.0340613]
[1731220003356,0.12549,205.48,205.39,17.0340613]
[1731220003542,0.12549,205.48,205.32,15.2839]
[1731220003543,17.0340613,205.47,205.4,17.0340613]
[1731220004648,17.0340613,205.5,205.43,17.0340613]
[1731220004833,17.0340613,205.51,205.44,17.0340613]
[1731220005029,17.0340613,205.52,205.44,17.0340613]
[1731220006057,17.0340613,205.53,205.46,17.0340613]
[1731220006256,17.0340613,205.53,205.42,15.2839]
[1731220006759,17.0340613,205.52,205.45,17.0340613]
[1731220007262,34.14873581,205.56,205.42,15.2839]
[1731220007263,17.0340613,205.53,205.42,15.2839]
[1731220007551,17.0340613,205.51,205.45,17.0340613]
[1731220007753,17.0340613,205.51,205.44,17.0340613]
[1731220007960,17.0340613,205.52,205.45,17.0340613]
[1731220008940,17.0340613,205.51,205.43,17.0340613]
[1731220009743,17.0340613,205.48,205.41,23.4514613]
[1731220011649,17.0340613,205.49,205.42,17.0340613]
[1731220012052,17.0340613,205.5,205.43,17.0340613]
[1731220012560,17.0340613,205.49,205.42,17.0340613]
[1731220013555,17.0340613,205.5,205.43,17.0340613]
[1731220013764,17.0340613,205.51,205.44,17.0340613]
[1731220014562,0.12549,205.55,205.45,17.0340613]
[1731220014563,17.0340613,205.52,205.45,17.0340613]
[1731220015744,17.0340613,205.51,205.41,6.4174]
[1731220015947,17.0340613,205.51,205.44,17.0340613]
[1731220016248,17.0340613,205.53,205.46,17.0340613]
[1731220016549,17.0340613,205.54,205.47,17.0340613]
[1731220016938,17.0340613,205.51,205.41,6.4174]
[1731220017135,17.0340613,205.51,205.44,17.0340613]
[1731220018166,0.12549,205.55,205.42,17.0340613]
[1731220018167,17.0340613,205.49,205.42,17.0340613]
[1731220018339,17.0340613,205.45,205.39,17.0340613]
[1731220018658,17.0340613,205.45,205.38,32.3179613]
[1731220019553,10.90940895,205.45,205.38,26.19330895]
[1731220020350,0.1,205.54,205.38,26.19330895]
[1731220020664,10.90940895,205.46,205.39,10.90940895]
[1731220021051,10.90940895,205.45,205.38,26.19330895]
[1731220021442,17.04525655,205.45,205.38,32.32915655]
[1731220022056,17.04525655,205.5,205.33,5.06874341]
[1731220022057,17.04525655,205.4,205.33,5.06874341]
[1731220022243,0.12549,205.44,205.28,15.5486]
[1731220022244,17.04525655,205.38,205.28,15.5486]
[1731220022561,17.04525655,205.37,205.3,17.04525655]
[1731220023464,17.04525655,205.38,205.3,17.04525655]
[1731220023665,17.04525655,205.37,205.3,17.04525655]
[1731220023859,17.04525655,205.39,205.32,17.04525655]
[1731220024165,17.04525655,205.41,205.34,17.04525655]
[1731220024751,17.04525655,205.41,205.28,15.5486]
[1731220024752,0.12549,205.44,205.35,17.04525655]
[1731220024960,17.04525655,205.43,205.36,17.04525655]
[1731220026245,17.04525655,205.42,205.35,17.04525655]
[1731220026457,0.12549,205.45,205.28,15.6486]
[1731220026458,17.04525655,205.39,205.32,17.04525655]
[1731220027051,17.04525655,205.38,205.31,17.04525655]
[1731220027262,17.04525655,205.36,205.29,17.04525655]
[1731220027872,17.04525655,205.35,205.28,32.59385655]
[1731220028247,17.04525655,205.36,205.29,17.04525655]
[1731220028443,17.04525655,205.36,205.3,17.04525655]
[1731220029062,17.04525655,205.37,205.3,17.04525655]
[1731220029558,17.04525655,205.36,205.3,17.04525655]
[1731220029774,17.04525655,205.36,205.29,17.04525655]
[1731220029959,17.04525655,205.36,205.3,17.04525655]
[1731220031071,17.04525655,205.37,205.3,17.04525655]
[1731220031267,17.04525655,205.37,205.31,17.04525655]
[1731220031567,17.04525655,205.36,205.29,17.04525655]
[1731220031756,17.04525655,205.35,205.29,17.04525655]
[1731220031957,17.04525655,205.37,205.3,17.04525655]
[1731220032755,17.04525655,205.38,205.28,15.5486]
[1731220032954,17.04525655,205.37,205.31,17.04525655]
[1731220033262,17.04525655,205.37,205.3,17.04525655]
[1731220034159,17.04525655,205.38,205.31,17.04525655]
[1731220034461,5.07369732,205.44,205.28,15.5486]
[1731220034462,17.04525655,205.4,205.33,17.04525655]
[1731220034671,34.0569,205.46,205.28,15.5486]
[1731220034672,17.04525655,205.41,205.34,17.04525655]
[1731220034963,17.04525655,205.41,205.16,285.49998047]
[1731220034964,29.08,205.35,205.22,4.73951668]
[1731220035166,29.08,205.35,205.22,17.04525655]
[1731220035167,17.04525655,205.29,205.22,17.04525655]
[1731220035372,17.04525655,205.3,205.22,21.6943]
[1731220035668,17.04525655,205.3,205.22,17.73955655]
[1731220035862,0.12549,205.34,205.22,17.73955655]
[1731220035863,17.04525655,205.31,205.23,17.04525655]
[1731220036455,17.04525655,205.32,205.25,17.04525655]
[1731220037473,17.04525655,205.34,205.26,17.04525655]
[1731220037675,17.04525655,205.35,205.28,17.04525655]
[1731220038062,17.04525655,205.34,205.26,17.04525655]
[1731220038361,17.04525655,205.34,205.27,17.04525655]
[1731220040058,17.04525655,205.32,205.25,32.58795655]
[1731220041480,17.04525655,205.32,205.25,17.04525655]
[1731220042659,0.12549,205.38,205.25,17.04525655]
[1731220042660,17.04525655,205.33,205.25,17.04525655]
[1731220043268,17.04525655,205.32,205.25,17.04525655]
[1731220043471,17.04525655,205.33,205.25,17.04525655]
[1731220043676,17.04525655,205.33,205.26,17.04525655]
[1731220043884,17.04525655,205.32,205.25,17.04525655]
[1731220044057,17.04525655,205.32,205.24,17.04525655]
[1731220044459,17.04525655,205.32,205.22,0.6943]
[1731220044460,17.04525655,205.33,205.25,17.04525655]
[1731220045456,17.04525655,205.33,205.26,17.04525655]
[1731220046381,17.04525655,205.34,205.27,17.04525655]
[1731220047159,17.04525655,205.36,205.29,17.04525655]
[1731220047475,17.04525655,205.38,205.31,17.04525655]
[1731220048367,17.04525655,205.39,205.32,17.04525655]
[1731220049772,17.04525655,205.38,205.31,17.04525655]
[1731220050077,17.04525655,205.37,205.3,17.04525655]
[1731220050976,17.04525655,205.37,205.31,17.04525655]
[1731220051179,17.04525655,205.37,205.3,17.04525655]
[1731220051482,0.12549,205.39,205.29,17.04525655]
[1731220051483,17.04525655,205.36,205.29,17.04525655]
[1731220051675,17.04525655,205.35,205.28,17.04525655]
[1731220052478,0.12549,205.39,205.3,17.04525655]
[1731220052479,17.04525655,205.37,205.3,17.04525655]
[1731220053782,17.04525655,205.36,205.22,3.51559991]
[1731220053993,17.04525655,205.37,205.3,17.04525655]
[1731220055470,10.91838716,205.39,205.32,10.91838716]
[1731220057875,16.291,205.43,205.34,10.91838716]
[1731220058071,15.98951858,205.42,205.35,10.91838716]
[1731220059378,5.07113142,205.42,205.37,10.91838716]
[1731220059576,10.91838716,205.45,205.38,10.91838716]
[1731220060378,10.91838716,205.45,205.3,50.40354864]
[1731220060379,16.5149,205.47,205.4,10.91838716]
[1731220060582,10.91838716,205.46,205.39,10.91838716]
[1731220061483,17.04558394,205.46,205.39,17.04558394]
[1731220061779,17.04558394,205.45,205.38,17.04558394]
[1731220062174,17.04558394,205.46,205.39,17.04558394]
[1731220062797,17.04558394,205.46,205.4,17.04558394]
[1731220063887,17.04558394,205.46,205.39,17.04558394]
[1731220064588,17.04558394,205.46,205.4,17.04558394]
[1731220065178,17.04558394,205.42,205.34,17.04558394]
[1731220065385,0.12549,205.46,205.34,17.04558394]
[1731220065386,17.04558394,205.41,205.34,17.04558394]
[1731220065866,17.04558394,205.42,205.34,17.04558394]
[1731220066067,17.04558394,205.42,205.35,17.04558394]
[1731220069691,17.04558394,205.44,205.37,17.04558394]
[1731220071377,16.5149,205.47,205.38,17.04558394]
[1731220071378,17.04558394,205.45,205.38,17.04558394]
[1731220071894,16.5149,205.47,205.39,17.04558394]
[1731220072070,16.5149,205.47,205.41,17.04558394]
[1731220073379,17.04558394,205.48,205.41,17.04558394]
[1731220073574,17.04558394,205.49,205.43,17.04558394]
[1731220075301,17.04558394,205.48,205.43,17.04558394]
[1731220075503,17.04558394,205.5,205.44,17.04558394]
[1731220075998,6.4606,205.53,205.47,17.04558394]
[1731220075999,17.04558394,205.53,205.47,17.04558394]
[1731220076381,5.06969744,205.55,205.47,17.04558394]
[1731220076581,17.04558394,205.53,205.47,17.04558394]
[1731220076988,5.06969744,205.55,205.47,17.04558394]
[1731220076989,17.04558394,205.54,205.47,17.04558394]
[1731220077184,17.04558394,205.49,205.43,17.04558394]
[1731220077403,17.04558394,205.48,205.42,17.04558394]
[1731220077783,17.04558394,205.49,205.42,17.04558394]
[1731220078495,17.04558394,205.49,205.39,6.3241]
[1731220078496,17.04558394,205.46,205.4,17.04558394]
[1731220078689,0.12549,205.54,205.39,6.3241]
[1731220078690,17.04558394,205.45,205.39,17.04558394]
[1731220078889,17.04558394,205.5,205.37,16.2158]
[1731220078890,17.04558394,205.42,205.37,16.2158]
[1731220079202,17.04558394,205.42,205.36,17.04558394]
[1731220079494,17.04558394,205.42,205.34,6.3241]
[1731220079495,17.04558394,205.47,205.4,17.04558394]
[1731220080202,17.04558394,205.47,205.41,17.04558394]
[1731220080399,17.04558394,205.47,205.4,17.04558394]
[1731220080605,17.04558394,205.47,205.31,0.1]
[1731220080606,17.04558394,205.41,205.3,17.045584]
[1731220080810,17.04558394,205.37,205.3,17.04558394]
[1731220081798,16.3267,205.43,205.29,17.04558394]
[1731220081799,17.04558394,205.36,205.29,17.04558394]
[1731220082002,17.04558394,205.35,205.28,17.04558394]
[1731220082602,17.04558394,205.36,205.29,17.04558394]
[1731220082787,17.04558394,205.37,205.3,17.04558394]
[1731220083515,17.04558394,205.39,205.31,17.04558394]
[1731220084379,17.04558394,205.38,205.3,17.04558394]
[1731220084803,17.04558394,205.36,205.29,17.04558394]
[1731220085205,17.04558394,205.37,205.3,17.04558394]
[1731220088389,17.04558394,205.38,205.31,17.04558394]
[1731220089801,17.04558394,205.37,205.3,17.04558394]
[1731220090802,17.04558394,205.37,205.29,17.04558394]
[1731220091288,10.91585194,205.39,205.31,10.91585194]
[1731220091502,10.91585194,205.38,205.3,10.91585194]
[1731220091890,0.12549,205.42,205.3,10.91585194]
[1731220092096,10.91585194,205.37,205.3,10.91585194]
[1731220093309,10.91585194,205.38,205.3,10.91585194]
[1731220093695,16.3267,205.43,205.3,10.91585194]
[1731220093895,10.91585194,205.38,205.3,10.91585194]
[1731220094195,16.3267,205.43,205.24,7.83736487]
[1731220094196,10.91585194,205.36,205.28,10.91585194]
[1731220094401,10.91585194,205.35,205.28,10.91585194]
[1731220095500,10.91585194,205.36,205.28,10.91585194]
[1731220095803,10.91585194,205.36,205.29,10.91585194]
[1731220097095,10.91585194,205.37,205.29,10.91585194]
[1731220097611,0.12549,205.42,205.3,10.91585194]
[1731220097812,10.91585194,205.39,205.31,10.91585194]
[1731220098203,10.91585194,205.38,205.31,10.91585194]
[1731220098810,16.3267,205.43,205.33,10.91585194]
[1731220099017,10.91585194,205.41,205.34,10.91585194]
[1731220099603,34.15075033,205.48,205.37,10.91585194]
[1731220099604,20.45705033,205.48,205.37,10.91585194]
[1731220099803,10.91585194,205.47,205.4,10.91585194]
[1731220101027,15.3863,205.53,205.38,4.73951668]
[1731220101028,15.3863,205.53,205.42,10.91585194]
[1731220101322,10.91585194,205.49,205.43,10.91585194]
[1731220101501,10.91585194,205.5,205.44,10.91585194]
[1731220102607,15.3863,205.53,205.44,10.91585194]
[1731220102809,10.91585194,205.51,205.44,10.91585194]
[1731220103123,15.3863,205.53,205.38,4.73951668]
[1731220103124,10.91585194,205.47,205.41,15.7262]
[1731220103299,17.04117303,205.47,205.41,15.7262]
[1731220103495,17.04117303,205.45,205.41,15.7262]
[1731220103723,0.12549,205.52,205.36,15.7262]
[1731220103925,17.04117303,205.46,205.39,17.04117303]
[1731220104231,0.12549,205.52,205.36,15.7262]
[1731220105126,17.04117303,205.44,205.34,11.37241668]
[1731220105302,17.04117303,205.44,205.37,17.04117303]
[1731220106211,17.04117303,205.43,205.36,17.04117303]
[1731220107126,17.04117303,205.42,205.35,17.04117303]
[1731220108429,17.04117303,205.43,205.36,17.04117303]
[1731220109729,17.04117303,205.42,205.35,17.04117303]
[1731220110030,17.04117303,205.41,205.34,6.6329]
[1731220110201,17.04117303,205.41,205.34,23.67407303]
[1731220111015,17.04117303,205.42,205.35,17.04117303]
[1731220111732,0.12549,205.49,205.34,6.6329]
[1731220111733,17.04117303,205.43,205.36,17.04117303]
[1731220112030,17.04117303,205.44,205.37,17.04117303]
[1731220113424,17.04117303,205.43,205.36,17.04117303]
[1731220114435,17.04117303,205.41,205.34,23.67407303]
[1731220115131,17.04117303,205.42,205.35,17.04117303]
[1731220115935,17.04117303,205.43,205.36,17.04117303]
[1731220116432,17.04117303,205.42,205.35,17.04117303]
[1731220117229,17.04117303,205.41,205.34,23.67407303]
[1731220117724,17.04117303,205.42,205.35,17.04117303]
[1731220119716,17.04117303,205.42,205.36,17.04117303]
[1731220120033,17.04117303,205.43,205.36,17.04117303]
[1731220120624,17.04117303,205.45,205.38,17.04117303]
[1731220121831,17.04117303,205.46,205.39,17.04117303]
[1731220122739,17.04117303,205.48,205.42,17.04117303]
[1731220123328,17.04117303,205.48,205.41,17.04117303]
[1731220123916,17.04117303,205.47,205.4,32.74827303]
[1731220124117,17.04117303,205.46,205.4,32.74827303]
[1731220124331,17.04117303,205.46,205.4,15.7071]
[1731220124540,15.3863,205.53,205.45,17.04117303]
[1731220124733,17.04117303,205.49,205.42,17.04117303]
[1731220125033,17.04117303,205.47,205.4,32.74827303]
[1731220125438,10.90619027,205.47,205.4,26.61329027]
[1731220125736,10.90619027,205.45,205.4,15.7071]
[1731220126640,10.90619027,205.46,205.4,26.61329027]
[1731220127320,10.90619027,205.46,205.4,15.7071]
[1731220127812,10.90619027,205.46,205.4,26.61329027]
[1731220128540,10.90619027,205.45,205.4,15.7071]
[1731220130134,43.62476108,205.5,205.4,15.7071]
[1731220130314,10.90619027,205.45,205.4,15.7071]
[1731220131139,10.90619027,205.45,205.34,6.6329]
[1731220131140,10.90619027,205.41,205.36,15.7071]
[1731220131842,10.90619027,205.42,205.36,15.7071]
[1731220132433,10.90619027,205.42,205.36,26.61329027]
[1731220132636,10.90619027,205.43,205.36,26.61329027]
[1731220133138,10.90619027,205.42,205.36,15.7071]
[1731220134638,0.12549,205.49,205.36,15.7071]
[1731220134839,10.90619027,205.39,205.36,15.7071]
[1731220135524,10.90619027,205.38,205.36,15.7071]
[1731220135729,10.90619027,205.39,205.36,15.7071]
[1731220136330,10.90619027,205.39,205.34,6.6329]
[1731220136546,10.90619027,205.37,205.31,15.7071]
[1731220136744,10.90619027,205.36,205.31,15.7071]
[1731220137039,10.90619027,205.35,205.31,15.7071]
[1731220137238,10.90619027,205.34,205.31,15.7071]
[1731220137642,43.62476108,205.4,205.31,15.7071]
[1731220137643,10.90619027,205.33,205.31,15.7071]
[1731220137869,10.90619027,205.33,205.3,1.2]
[1731220138443,10.90619027,205.34,205.3,1.2]
[1731220138629,10.90619027,205.35,205.3,1.2]
[1731220139443,10.90619027,205.33,205.3,1.2]
[1731220139650,10.90619027,205.32,205.3,1.2]
[1731220139840,29.08,205.44,205.31,10.90619027]
[1731220140052,10.90619027,205.38,205.31,10.90619027]
[1731220140239,10.90619027,205.36,205.3,5.93951668]
[1731220140439,10.90619027,205.38,205.31,10.90619027]
[1731220140645,10.90619027,205.37,205.3,12.10619027]
[1731220141052,10.90619027,205.35,205.3,1.2]
[1731220141255,10.90619027,205.36,205.3,1.2]
[1731220141838,10.90619027,205.33,205.3,1.2]
[1731220142155,10.90619027,205.32,205.3,1.2]
[1731220142354,10.90619027,205.33,205.3,1.2]
[1731220142660,10.90619027,205.39,205.32,10.90619027]
[1731220143349,0.12549,205.44,205.32,10.90619027]
[1731220143555,10.90619027,205.39,205.32,10.90619027]
[1731220143749,10.90619027,205.4,205.33,10.90619027]
[1731220144260,10.90619027,205.39,205.32,10.90619027]
[1731220146659,29.28549,205.44,205.3,1.2]
[1731220146660,10.90619027,205.34,205.3,1.2]
[1731220147036,10.90619027,205.35,205.3,1.2]
[1731220147237,29.28549,205.44,205.3,12.10619027]
[1731220147544,10.90619027,205.38,205.31,10.90619027]
[1731220148649,10.90619027,205.39,205.32,10.90619027]
[1731220148963,10.90619027,205.39,205.33,10.90619027]
[1731220149151,10.90619027,205.4,205.33,10.90619027]
[1731220150263,10.90619027,205.44,205.37,10.90619027]
[1731220150440,0.12549,205.48,205.37,10.90619027]
[1731220150758,10.90619027,205.44,205.37,10.90619027]
[1731220151337,17.04604939,205.44,205.37,17.04604939]
[1731220151538,17.04604939,205.42,205.35,15.0042]
[1731220151734,17.04604939,205.42,205.35,32.05024939]
[1731220153054,17.04604939,205.44,205.37,17.04604939]
[1731220153342,17.04604939,205.4,205.32,6.6435]
[1731220153556,17.04604939,205.38,205.32,6.6435]
[1731220156065,17.04604939,205.39,205.32,23.68954939]
[1731220157150,17.04604939,205.39,205.33,17.04604939]
[1731220157462,17.04604939,205.41,205.34,17.04604939]
[1731220157661,17.04604939,205.4,205.33,17.04604939]
[1731220157977,17.04604939,205.38,205.32,6.6435]
[1731220158859,17.04604939,205.35,205.3,16.2042]
[1731220159036,17.04604939,205.34,205.3,16.2042]
[1731220159242,17.04604939,205.35,205.3,16.2042]
[1731220159959,46.20604939,205.4,205.3,16.2042]
[1731220159960,17.04604939,205.34,205.3,16.2042]
[1731220161249,17.04604939,205.32,205.3,1.2]
[1731220161852,17.04604939,205.31,205.3,1.2]
[1731220164365,46.33153939,205.31,205.3,1.2]
[1731220165052,63.37758878,205.31,205.3,1.2]
[1731220165451,46.33153939,205.31,205.3,1.2]
[1731220167454,63.37758878,205.31,205.3,1.2]
[1731220167659,46.33153939,205.31,205.3,1.2]
[1731220167851,63.37758878,205.31,205.3,1.2]
[1731220171258,0.22549,205.28,205.15,16.2342]
[1731220171468,17.04604939,205.18,205.15,16.2342]
[1731220173263,17.04604939,205.16,205.15,16.2342]
[1731220173465,10.94017717,205.16,205.15,16.2342]
[1731220173780,10.94017717,205.17,205.15,16.2342]
[1731220174857,0.12549,205.24,205.15,16.2342]
[1731220175271,10.94017717,205.17,205.15,16.2342]
[1731220175462,17.08964465,205.17,205.15,16.2342]
[1731220176875,17.08964465,205.18,205.15,16.2342]
[1731220177065,46.24964465,205.16,205.05,5.06662576]
[1731220177377,46.24964465,205.16,205.0,0.063]
[1731220177378,0.12549,205.15,205.02,17.08964465]
[1731220177577,17.08964465,205.1,205.04,17.08964465]
[1731220178077,17.08964465,205.07,205.01,22.0034]
[1731220178261,17.08964465,205.08,205.01,39.09304465]
[1731220178662,17.08964465,205.06,205.01,22.0034]
[1731220178857,17.08964465,205.08,205.01,39.09304465]
[1731220179481,17.08964465,205.1,205.03,17.08964465]
[1731220180486,17.08964465,205.11,205.04,17.08964465]
[1731220183284,17.08964465,205.1,205.01,22.0034]
[1731220183593,17.08964465,205.11,205.04,17.08964465]
[1731220183759,17.08964465,205.12,205.05,17.08964465]
[1731220183964,17.08964465,205.14,205.07,17.08964465]
[1731220184264,29.16,205.19,205.08,17.08964465]
[1731220184467,17.08964465,205.15,205.08,17.08964465]
[1731220184769,17.08964465,205.14,205.07,17.08964465]
[1731220185084,17.08964465,205.13,205.07,17.08964465]
[1731220185397,17.08964465,205.13,205.06,17.08964465]
[1731220185567,17.08964465,205.13,205.01,22.0034]
[1731220185762,17.08964465,205.13,205.06,17.08964465]
[1731220187181,17.08964465,205.11,205.01,24.69958384]
[1731220187379,17.08964465,205.1,205.03,17.08964465]
[1731220187584,0.1,205.1,205.04,17.08964465]
[1731220188292,0.2,205.12,205.06,17.08964465]
[1731220189992,17.28964465,205.12,205.06,17.08964465]
[1731220190192,17.28964465,205.12,205.05,17.08964465]
[1731220190376,17.18964465,205.12,205.05,17.08964465]
[1731220190578,17.28964465,205.12,205.05,32.61494465]
[1731220192086,17.08964465,205.11,205.05,32.61494465]
[1731220193089,0.1,205.12,205.05,32.61494465]
[1731220193090,17.28964465,205.12,205.05,32.61494465]
[1731220193398,17.08964465,205.11,205.05,32.61494465]
[1731220193982,17.28964465,205.12,205.05,32.61494465]
[1731220195398,10.94336856,205.11,205.05,26.46866856]
[1731220195572,11.04336856,205.12,205.06,10.94336856]
[1731220195896,0.2,205.12,205.07,10.94336856]
[1731220196373,0.1,205.12,205.07,10.94336856]
[1731220196569,0.2,205.12,205.07,10.94336856]
[1731220196872,0.1,205.07,204.97,15.5253]
[1731220197188,10.94336856,205.06,205.0,10.94336856]
[1731220197381,11.04336856,205.04,204.97,15.5253]
[1731220197590,11.14336856,205.04,204.98,10.94336856]
[1731220197967,11.04336856,205.04,204.98,10.94336856]
[1731220198874,0.1,205.04,204.99,10.94336856]
[1731220199273,0.1,205.04,204.97,15.5253]
[1731220199482,17.10974032,205.03,204.97,15.5253]
[1731220199789,0.1,205.05,204.99,17.10974032]
[1731220200573,0.1,205.03,204.99,17.10974032]
[1731220200777,0.1,205.05,204.99,17.10974032]
[1731220200994,17.20974032,205.06,204.99,17.10974032]
[1731220200995,17.30974032,205.06,204.99,17.10974032]
[1731220201186,0.1,205.04,204.99,17.10974032]
[1731220201371,17.20974032,205.04,204.98,17.10974032]
[1731220201577,17.30974032,205.02,204.97,15.5253]
[1731220201776,0.2,205.02,204.97,15.5253]
[1731220202190,0.2,205.02,204.97,17.10974032]
[1731220202392,17.30974032,205.02,204.94,5.06924968]
[1731220202594,17.20974032,205.02,204.96,17.10974032]
[1731220202804,0.2,205.02,204.96,17.10974032]
[1731220203302,0.1,205.02,204.96,17.10974032]
[1731220203799,0.1,205.02,204.98,17.10974032]
[1731220203987,0.1,205.02,205.0,17.10974032]
[1731220204299,0.1,205.02,205.01,17.10974032]
[1731220205293,0.1,205.07,205.01,17.10974032]
[1731220205501,0.1,205.07,205.04,17.10974032]
[1731220205802,0.1,205.07,204.99,22.9605]
[1731220206097,0.1,205.07,205.03,17.10974032]
[1731220207677,17.10974032,205.05,204.99,22.9605]
[1731220207874,0.1,205.02,204.98,17.10974032]
[1731220208296,0.1,205.02,204.94,5.06924968]
[1731220208481,0.1,205.02,204.98,17.10974032]
[1731220208682,0.1,205.02,204.99,17.10974032]
[1731220209101,0.1,205.02,204.98,17.10974032]
[1731220209275,0.1,205.0,204.98,17.10974032]
[1731220210406,0.1,205.04,204.99,17.10974032]
[1731220210781,0.1,205.04,205.0,17.10974032]
[1731220210997,0.1,205.02,205.0,17.10974032]
[1731220211195,0.1,205.02,204.99,17.10974032]
[1731220211801,0.1,205.0,204.94,8.45861369]
[1731220212006,0.1,205.0,204.98,17.10974032]
[1731220212183,0.1,205.02,204.98,17.10974032]
[1731220212803,0.1,204.99,204.98,17.10974032]
[1731220212977,0.1,205.01,204.98,17.10974032]
[1731220213701,0.1,205.01,204.97,17.10974032]
[1731220213886,0.1,204.99,204.96,17.10974032]
[1731220214396,17.20974032,205.03,204.94,5.06924968]
[1731220214397,0.1,205.01,204.94,5.06924968]
[1731220214602,0.1,204.99,204.94,22.17899]
[1731220214997,0.1,204.99,204.95,17.10974032]
[1731220215301,0.1,204.99,204.94,22.17899]
[1731220215598,0.1,205.01,204.98,17.10974032]
[1731220215898,0.1,205.01,205.0,17.10974032]
[1731220216891,0.1,205.03,205.0,17.10974032]
[1731220217097,0.1,205.01,205.0,17.10974032]
[1731220217287,0.1,205.01,204.99,17.10974032]
[1731220218202,0.1,205.03,204.99,17.10974032]
[1731220218396,0.1,205.03,205.0,17.10974032]
[1731220218596,0.1,205.01,204.99,17.10974032]
[1731220219512,0.1,205.0,204.97,10.95092791]
[1731220219689,0.1,205.0,204.93,19.87097221]
[1731220219690,0.2,205.0,204.95,10.95092791]
[1731220220086,0.2,205.0,204.96,10.95092791]
[1731220220486,0.2,205.0,204.97,10.95092791]
[1731220221409,0.2,205.0,204.98,10.95092791]
[1731220222407,0.1,204.98,204.97,10.95092791]
[1731220226701,0.2,204.98,204.91,3.3905209]
[1731220226907,0.1,204.93,204.88,6.549]
[1731220227216,0.1,204.93,204.92,10.95092791]
[1731220227394,0.1,204.95,204.92,10.95092791]
[1731220227596,0.1,204.95,204.93,10.95092791]
[1731220227795,0.1,204.95,204.8,48.87207815]
[1731220227796,0.1,204.87,204.8,5.06836651]
[1731220228000,0.2,204.87,204.7,21.4291]
[1731220228215,0.1,204.87,204.86,10.95092791]
[1731220228422,0.1,204.87,204.75,17.559428]
[1731220228613,0.2,204.89,204.86,10.95092791]
[1731220228808,0.1,204.89,204.88,10.95092791]
[1731220229211,0.1,204.92,204.81,6.4267]
[1731220229397,0.1,204.91,204.81,6.4267]
[1731220229600,0.1,204.91,204.89,10.95092791]
[1731220229919,0.1,204.92,204.9,10.95092791]
[1731220230109,0.1,204.92,204.91,10.95092791]
[1731220230815,0.1,204.92,204.81,6.4267]
[1731220230998,0.1,204.92,204.91,10.95092791]
[1731220231311,0.1,204.92,204.91,17.12100598]
[1731220231913,0.2,204.95,204.91,17.12100598]
[1731220232099,0.2,204.95,204.94,17.12100598]
[1731220232302,0.2,204.95,204.93,17.12100598]
[1731220233102,0.1,204.93,204.92,17.12100598]
[1731220233703,0.2,204.95,204.92,17.12100598]
[1731220234110,0.1,204.93,204.92,17.12100598]
[1731220235115,0.2,204.95,204.92,17.12100598]
[1731220235318,0.1,204.93,204.92,17.12100598]
[1731220236811,0.2,204.95,204.92,17.12100598]
[1731220236997,0.2,204.95,204.93,17.12100598]
[1731220237703,0.1,204.93,204.81,9.90824968]
[1731220237914,0.2,204.95,204.92,17.12100598]
[1731220238297,0.1,204.93,204.92,17.12100598]
[1731220238721,0.1,204.95,204.92,17.12100598]
[1731220238925,0.1,204.93,204.92,17.12100598]
[1731220239125,0.2,204.95,204.92,17.12100598]
[1731220239505,0.1,204.93,204.91,17.12100598]
[1731220240206,0.2,204.93,204.91,17.12100598]
[1731220240906,0.2,204.95,204.92,17.12100598]
[1731220241105,0.2,204.95,204.93,17.12100598]
[1731220241324,0.1,204.94,204.93,17.12100598]
[1731220241523,0.1,204.95,204.93,17.12100598]
[1731220241726,0.1,204.93,204.92,17.12100598]
[1731220241923,0.2,204.95,204.92,17.12100598]
[1731220242409,0.1,204.93,204.92,17.12100598]
[1731220242816,0.2,204.95,204.92,17.12100598]
[1731220243111,0.2,204.95,204.93,17.12100598]
[1731220243313,0.1,204.95,204.93,17.12100598]
[1731220243702,0.2,204.98,204.94,17.12100598]
[1731220243899,0.1,204.96,204.94,17.12100598]
[1731220244135,0.2,204.98,204.89,15.4098]